Cogmind - Beta 13 *** ADVENTURER MODE // 2024.05.29 @ 10:48:49 Player: oatmeal Result: Self-destructed Performance ------------- Evolutions (5) 2500 Regions Visited (8) 1600 Robots Destroyed (166) 830 Value Destroyed (4183) 4183 Prototype IDs (34) 680 Alien Tech Used (0) 0 Bonus (300) 300 TOTAL SCORE: 10093 Bonus ------- Aligned with FarCom 300 Cogmind --------- Core Integrity 773/1000 Matter 124/300 Energy 100/100 System Corruption 1% Temperature Cool (0) Movement Flying (230) Ox3 Location -5/Factory Parts ------- > --- POWER (1) -------- (None) > --- PROPULSION (4) --- Cooled VTOL Module > --- UTILITY (10) ----- Small Storage Unit Structural Scanner Advanced ECM Suite Advanced ECM Suite Hacking Suite Hacking Suite System Shield Advanced System Shield > --- WEAPON (2) ------- Great Axe > --- INVENTORY (8) ---- Light Angular Momentum Engine Fusion Compressor Advanced Cooling System Improved Medium Armor Plating Peak State ------------ > --- POWER ------------ Micro Fission Core > --- PROPULSION ------- Cooled VTOL Module Cooled VTOL Module Nuclear Pulse Array > --- UTILITY ---------- Small Storage Unit Structural Scanner Advanced ECM Suite Improved Medium Armor Plating Advanced Shield Generator Hacking Suite Hacking Suite Hacking Suite System Shield Advanced System Shield > --- WEAPON ----------- Great Axe > --- INVENTORY -------- Light Angular Momentum Engine Fusion Compressor Xenon Bombardment Thruster Field Propulsion Drive Advanced Cooling System Transmission Jammer Advanced ECM Suite Heavy Missile Launcher [Rating: 69] Favorites ----------- Power Ion Engine Engine Ion Engine Power Core Micro Nuclear Core Propulsion Wheel Treads Light Treads Leg Aluminum Leg Wheel Wheel Flight Unit VTOL Module Utility Hacking Suite Device Advanced ECM Suite Storage Large Storage Unit Processor Advanced Targeting Computer Hackware Hacking Suite Protection Medium Armor Plating Weapon Assault Rifle Energy Gun Advanced Beam Rifle Energy Cannon Heavy Particle Cannon Ballistic Gun Assault Rifle Ballistic Cannon Assault Cannon Launcher Grenade Launcher Impact Weapon Mace Slashing Weapon Great Axe Build | -11 -10 -10 -10 -9 -8 -7 -6 -5 ------- Run | Yrd Mat Min Exi Min Mat Fac Fac Fac Slots Evolved 10 | . . . . . 4 2 2 2 Power . | . . . . . . . . . Propulsion 2 | . . . . . 2 . . . Utility 8 | . . . . . 2 2 2 2 Weapon . | . . . . . . . . . Parts Attached 183 | 7 12 5 2 . 52 61 19 25 Power 14 | 1 . . . . 5 6 1 1 Engine 9 | 1 . . . . 5 2 1 . Core 5 | . . . . . . 4 . 1 Reactor . | . . . . . . . . . Propulsion 59 | 2 3 1 . . 21 21 2 9 Treads 12 | 1 1 . . . 7 3 . . Leg 2 | . . . . . 2 . . . Wheel 12 | 1 2 1 . . 8 . . . Hover . | . . . . . . . . . Flight 33 | . . . . . 4 18 2 9 Utility 51 | 2 2 . . . 9 17 12 9 Device 29 | 1 . . . . 3 10 9 6 Storage 4 | 1 2 . . . . 1 . . Processor 2 | . . . . . 2 . . . Hackware 6 | . . . . . . 3 1 2 Protection 10 | . . . . . 4 3 2 1 Artifact . | . . . . . . . . . Weapon 59 | 2 7 4 2 . 17 17 4 6 Energy Gun 6 | 1 . . . . 5 . . . Energy Cannon 15 | . 2 . 1 . 2 8 2 . Ballistic Gun 10 | 1 4 2 1 . 2 . . . Ballistic Cannon 4 | . . . . . 3 1 . . Launcher 13 | . 1 2 . . 5 2 . 3 Special Weapon . | . . . . . . . . . Impact Weapon 7 | . . . . . . 4 2 1 Slashing Weapon 4 | . . . . . . 2 . 2 Piercing Weapon . | . . . . . . . . . Special Melee Weapon . | . . . . . . . . . Unidentified Prototypes 2 | . . . . . 2 . . . Parts Lost 20 | . . . . . 7 2 2 9 Power 3 | . . . . . 2 . . 1 Propulsion 10 | . . . . . 4 1 1 4 Utility 4 | . . . . . . 1 . 3 Weapon 3 | . . . . . 1 . 1 1 Highest Loss Streak 6 | . . . . . 2 1 2 6 To Critical Strikes . | . . . . . . . . . Average Slot Usage (%) 93 | . 100 100 100 100 96 93 84 83 Engine 7 | . 14 14 14 14 8 4 1 . Core 1 | . . . . . . 2 4 4 Treads 9 | . 14 14 14 14 15 9 . . Wheel 9 | . 14 14 14 14 13 9 . . Flight 8 | . . . . . 2 11 19 15 Device 19 | . 14 14 14 14 12 24 25 22 Storage 8 | . 14 14 14 14 9 4 6 5 Processor 2 | . . . . . 3 4 . . Hackware 6 | . . . . . . 5 20 26 Protection 3 | . . . . . 10 4 . . Energy Gun 1 | . . . . . 5 . . . Energy Cannon 3 | . 3 . . . 5 4 . . Ballistic Gun 6 | . 23 25 27 28 2 . . . Ballistic Cannon 2 | . . . . . 4 4 . . Naked Turns . | . . . . . . . . . Heaviest Build 55 | 15 31 31 38 30 50 55 30 26 Greatest Support 44 | 20 20 20 10 10 40 44 25 26 Greatest Overweight (x) 4 | 1 3 3 3 2 4 2 1 3 Average Overweight (x) . | . 1 2 2 2 1 . . . Largest Inventory Capacity 15 | 8 15 15 15 15 15 15 8 8 Average Capacity 11 | 7 11 15 15 15 15 11 8 8 Most Carried 15 | 8 15 15 15 15 15 15 8 8 Average Carried 11 | 5 10 15 15 14 14 11 7 7 Final Capacity 15 | 8 15 15 15 15 15 8 8 8 Final Carried 15 | 8 15 15 15 14 15 8 8 4 Class Distribution -------------------- 35% | Mutant 21% | Scavenger-Mutant 16% | Hacker-Mutant 11% | Hacker-Sprinter 5% | Scavenger-Skirmisher 4% | Wizard-Mutant 3% | Skirmisher Dominant Class ---------------- Mutant | -10/Materials Mutant | -10/Mines Mutant | -10/Exiles Skirmisher | -9/Mines Scavenger-Mutant | -8/Materials Mutant | -7/Factory Hacker-Mutant | -6/Factory Wizard-Mutant | -5/Factory Resources | -11 -10 -10 -10 -9 -8 -7 -6 -5 ----------- Run | Yrd Mat Min Exi Min Mat Fac Fac Fac Matter Collected 3077 | 306 373 168 . 69 974 920 155 112 Remotely . | . . . . . . . . . Salvage Created 4858 | 174 751 160 . 42 1504 1896 149 182 Parts 323 | 10 51 25 . 7 106 99 10 15 Haulers Intercepted 4 | . . . . . 2 2 . . Recyclers Shooed 2 | . 1 . . . . 1 . . Parts Field Recycled . | . . . . . . . . . Retrieved Matter . | . . . . . . . . . Parts Self-Destructed . | . . . . . . . . . Prevented . | . . . . . . . . . Kills | -11 -10 -10 -10 -9 -8 -7 -6 -5 ------- Run | Yrd Mat Min Exi Min Mat Fac Fac Fac Combat Hostiles Destroyed 95 | . 11 9 . 3 33 28 4 7 Melee 4 | . . . . . 1 . 1 2 Guns 31 | . 9 8 . 3 11 . . . Cannons 34 | . 2 . . . 9 20 3 . AOE 25 | . . 1 . . 11 8 . 5 Classes Destroyed 15 | 3 4 . . . 5 3 . . Worker 14 | 2 2 . . . 6 4 . . Builder 16 | . 4 2 . . 4 6 . . Tunneler 6 | 3 1 1 . . 1 . . . Hauler 4 | . . . . . 2 2 . . Recycler 13 | 1 3 . . . 2 7 . . Mechanic 1 | . . . . . . 1 . . Operator 7 | . . . . . 2 4 1 . Watcher 10 | . 2 . . . 3 4 . 1 Swarmer 34 | . 6 9 . 3 8 . 3 5 Grunt 35 | . 5 . . . 13 17 . . Brawler 1 | . . . . . 1 . . . Duelist 1 | . . . . . . 1 . . Sentry 11 | . . . . . 9 2 . . Hunter 5 | . . . . . 2 2 1 . Programmer 8 | . . . . . . 6 . 2 Best Kill Streak 12 | 4 3 3 . 3 8 12 3 6 Combat Bots Only 6 | . 3 3 . 3 6 6 3 5 Max Kills in Single Turn 5 | 1 1 1 . 1 5 4 1 5 Gunslinging . | . . . . . . . . . Exploded 4 | . . 1 . . 4 2 . 4 Melee 1 | . . . . . 1 . 1 1 Uniques/NPCs Destroyed . | . . . . . . . . . Combat | -11 -10 -10 -10 -9 -8 -7 -6 -5 -------- Run | Yrd Mat Min Exi Min Mat Fac Fac Fac Hostile Shots Fired 553 | . 43 40 . 8 169 163 58 72 Missed 175 | . 17 17 . 2 45 59 19 16 Damage Taken 3922 | . 191 126 . 36 1478 838 414 839 Core 894 | . 27 30 . . 274 233 103 227 Absorbed by Shields 187 | . . . . . . 127 27 33 Redirected to Shielding 51 | . . . . . 20 . 31 . Ignored by Resistances 1216 | . 60 46 . 12 419 297 128 254 Regen/Repaired (Parts) 219 | . . . . . . 89 . 130 Core Remaining (%) 76 | 100 . . . 77 50 66 87 . Volleys Fired 282 | 12 57 22 . 3 94 84 8 2 Largest 2 | 2 2 2 . 2 2 2 1 1 Hottest 160 | 70 80 50 . 40 160 120 120 39 Shots Fired 520 | 24 112 34 . 6 187 147 8 2 Gun 279 | 24 104 28 . 6 117 . . . Cannon 211 | . 6 . . . 60 137 8 . Launcher 30 | . 2 6 . . 10 10 . 2 Special . | . . . . . . . . . Kinetic 292 | 12 97 28 . 6 86 63 . . Thermal 198 | 12 13 . . . 91 74 8 . Explosive 30 | . 2 6 . . 10 10 . 2 Electromagnetic . | . . . . . . . . . Robot Hit Streak 26 | 8 15 10 . 4 24 26 10 11 Robot Miss Streak 4 | 1 3 1 . 1 4 2 . 1 Penetration Max . | . . . . . . . . . Secondary Targets 2 | . 1 . . . 1 . . . Max Gunslinging Chain 1 | . 1 . . . 1 . . . Shots Hit Robots 409 | 19 72 19 . 4 152 123 11 9 Core Hits 228 | 7 30 12 . 3 81 79 5 11 Critical Kills 1 | . . . . 1 . . . . Critical Parts Destroyed 1 | . . . . . 1 . . . Critical Strikes 8 | . . . . 1 3 2 . 2 Burn 2 | . . . . . 2 . . . Destroy 2 | . . . . 1 1 . . . Blast 2 | . . . . . . 2 . . Sever 2 | . . . . . . . . 2 Melee Attacks 48 | . . . . . . 17 12 19 Impact 28 | . . . . . . 16 12 . Slashing 20 | . . . . . . 1 . 19 Piercing . | . . . . . . . . . Sneak Attacks 6 | . . . . . . 5 1 . Combat Hostiles . | . . . . . . . . . Follow-up Attacks . | . . . . . . . . . Damage Inflicted 12238 | 227 960 400 . 55 4472 4934 400 790 Guns 3145 | 227 885 229 . 55 1749 . . . Cannons 4247 | . 75 . . . 1061 2813 298 . Explosions 3816 | . . 171 . . 1623 1521 . 501 Melee 991 | . . . . . . 600 102 289 Ramming 39 | . . . . . 39 . . . Kinetic 3508 | 105 798 229 . 55 1202 1119 . . Thermal 4025 | 122 162 . . . 1608 1694 298 141 Explosive 3675 | . . 171 . . 1623 1521 . 360 Electromagnetic . | . . . . . . . . . Impact 582 | . . . . . . 480 102 . Slashing 409 | . . . . . . 120 . 289 Piercing . | . . . . . . . . . Highest Corruption 1 | . . . . . . 1 . 1 Average Corruption 1 | . . . . . . 1 . 1 Corruption Purged . | . . . . . . . . . Corruption Blocked . | . . . . . . . . . Effects 7 | . . . . . . 7 . . Message Errors 1 | . . . . . . 1 . . Matter Fused 1 | . . . . . . 1 . . Heat Flow Errors 1 | . . . . . . 1 . . Energy Discharges 1 | . . . . . . 1 . . Data Loss (minor) 2 | . . . . . . 2 . . Alerts 1 | . . . . . . 1 . . Overload Shots . | . . . . . . . . . Overflow Damage 626 | . . 5 . . 49 356 41 175 Projectiles 143 | . . . . . 30 72 41 . Explosions 230 | . . 5 . . 19 31 . 175 Melee 253 | . . . . . . 253 . . Knockbacks 16 | . . . . . 1 15 . . Impact 2 | . . . . . . 2 . . Kinetic 13 | . . . . . 1 12 . . Secondary 1 | . . . . . . 1 . . Self-Inflicted Damage 191 | . . . . . . . . 191 Shots 4 | . . . . . . . . 4 Rammed 25 | . . . . . 25 . . . Targets Rammed 25 | . . . . . 25 . . . Kicked . | . . . . . . . . . Crushed . | . . . . . . . . . Highest Temperature 279 | 63 126 . . . 279 173 192 11 Average Temperature 48 | 25 60 . . . 41 51 90 11 Received Heat Transfer 1292 | . 60 . . . 765 455 12 . Siege Activations . | . . . . . . . . . Robots Corrupted . | . . . . . . . . . Combat Hostiles . | . . . . . . . . . Parts Fried 8 | . . . . . . 8 . . Impact Corruptions 8 | . . . . . . 8 . . Robots Melted 1 | . . . . . 1 . . . Combat Hostiles 1 | . . . . . 1 . . . Parts Melted 9 | 2 . . . . 3 2 2 . Heat Transferred 7251 | 370 407 . . . 3017 2767 640 50 Parts Sabotaged . | . . . . . . . . . Parts Stolen . | . . . . . . . . . Parts Stripped . | . . . . . . . . . Power Chain Reactions . | . . . . . . . . . Alert | -11 -10 -10 -10 -9 -8 -7 -6 -5 ------- Run | Yrd Mat Min Exi Min Mat Fac Fac Fac Peak Influence 475 | 30 256 190 . 70 327 475 215 228 Initial 104 | . 16 6 . . 22 1 104 18 Average 102 | 13 77 106 . 63 155 109 79 33 Maximum Alert Level 2 | . 1 . . . 1 2 1 1 Low Security (%) 82 | 100 92 100 . 100 62 79 91 97 Level 1 16 | . 7 . . . 37 17 8 2 Level 2 . | . . . . . . 2 . . Level 3 . | . . . . . . . . . Level 4 . | . . . . . . . . . Level 5 . | . . . . . . . . . High Security . | . . . . . . . . . Max Security . | . . . . . . . . . Squads Dispatched 31 | . 1 . . . 3 20 2 5 Investigation 13 | . 1 . . . 2 7 . 3 Extermination 9 | . . . . . . 7 1 1 Reinforcement 9 | . . . . . 1 6 1 1 Assault . | . . . . . . . . . Garrison . | . . . . . . . . . Intercept . | . . . . . . . . . Searches Triggered . | . . . . . . . . . Construction Impeded 2 | . . . . . . 1 . 1 Haulers Reinforced 1 | . . . . . . 1 . . Active Scanning Responses . | . . . . . . . . . Cargo Convoy Interrupts . | . . . . . . . . . Stealth | -11 -10 -10 -10 -9 -8 -7 -6 -5 --------- Run | Yrd Mat Min Exi Min Mat Fac Fac Fac Distress Signals 13 | . 1 . . . 6 3 1 2 Communications Jammed . | . . . . . . . . . Distress Signals . | . . . . . . . . . Times Spotted 171 | . 27 9 . 3 46 55 20 11 Peak Tracking Total 7 | . 4 3 . 3 6 7 5 7 Tactical Retreats 20 | . 1 . . . 1 10 6 2 Traps | -11 -10 -10 -10 -9 -8 -7 -6 -5 ------- Run | Yrd Mat Min Exi Min Mat Fac Fac Fac Traps Triggered 12 | . 1 . . . 3 8 . . Indirectly . | . . . . . . . . . Trap Hack Attempts . | . . . . . . . . . Triggered . | . . . . . . . . . Disarmed . | . . . . . . . . . Reprogrammed 3 | . 3 . . . . . . . Reused . | . . . . . . . . . Traps Extracted . | . . . . . . . . . Installed . | . . . . . . . . . Triggered . | . . . . . . . . . Machines | -11 -10 -10 -10 -9 -8 -7 -6 -5 ---------- Run | Yrd Mat Min Exi Min Mat Fac Fac Fac Machines Disabled 10 | . 1 2 . . 1 4 . 2 Max in Single Turn 2 | . 1 2 . . 1 1 . 2 Garrison Access 3 | . . . . . 1 . 2 . Machines Repaired . | . . . . . . . . . Machines Dismantled . | . . . . . . . . . Machines Sabotaged . | . . . . . . . . . Overloaded Fab Kills . | . . . . . . . . . Hacking | -11 -10 -10 -10 -9 -8 -7 -6 -5 --------- Run | Yrd Mat Min Exi Min Mat Fac Fac Fac Machines Accessed 61 | . 11 . 2 . 11 19 10 8 Terminals 27 | . 8 . . . 8 6 2 3 Fabricators 10 | . . . . . . 6 1 3 Repair Stations 6 | . 1 . . . . 3 . 2 Recycling Units 6 | . 2 . . . . 2 2 . Scanalyzers 6 | . . . . . 2 1 3 . Garrison Access 4 | . . . . . 1 1 2 . Total Hacks 133 | . 25 . 2 . 21 37 28 20 Successful 78 | . 16 . 2 . 11 17 14 18 Failed 53 | . 8 . . . 9 20 14 2 Catastrophic 6 | . . . . . 1 4 . 1 Database Lockouts 2 | . 1 . . . 1 . . . Manual 42 | . 10 . 1 . 14 8 4 5 Terminals 55 | . 15 . . . 16 11 7 6 Fabricators 19 | . . . . . . 13 1 5 Repair Stations 18 | . 4 . . . . 5 . 9 Recycling Units 13 | . 6 . . . . 5 2 . Scanalyzers 17 | . . . . . 4 1 12 . Garrison Access 9 | . . . . . 1 2 6 . Terminal Hacks 27 | . 11 . 2 . 6 2 1 5 Record 1 | . . . 1 . . . . . Part Schematic 8 | . 1 . . . 2 1 . 4 Robot Analysis 3 | . 3 . . . . . . . Prototype ID Bank 3 | . 2 . . . 1 . . . Open DSF 1 | . . . . . . . . 1 Emergency Access Points 1 | . 1 . . . . . . . Scanalyzer Index 1 | . . . . . . . 1 . Alert Level 2 | . . . . . 1 1 . . Unreport Threat 2 | . . . . . 2 . . . Locate Traps 1 | . 1 . . . . . . . Reprogram Traps 1 | . 1 . . . . . . . Dispatch Records 1 | . 1 . . . . . . . Patrol Status 1 | . 1 . . . . . . . Derelict Proto ID Bank 1 | . . . 1 . . . . . Fabricator Hacks 15 | . . . . . . 9 1 5 Network Status 2 | . . . . . . 1 . 1 Load Schematic 7 | . . . . . . 4 1 2 Build 6 | . . . . . . 4 . 2 Repair Station Hacks 12 | . 1 . . . . 3 . 8 Scan Component 7 | . 1 . . . . 2 . 4 Repair 5 | . . . . . . 1 . 4 Recycling Unit Hacks 9 | . 4 . . . . 3 2 . Retrieve Matter 1 | . . . . . . 1 . . Retrieve Components 8 | . 4 . . . . 2 2 . Scanalyzer 12 | . . . . . 4 . 8 . Insert Component 6 | . . . . . 2 . 4 . Analyze 6 | . . . . . 2 . 4 . Garrison Access Hacks 3 | . . . . . 1 . 2 . Seal Access 3 | . . . . . 1 . 2 . Unauthorized Hacks . | . . . . . . . . . Terminals . | . . . . . . . . . Fabricators . | . . . . . . . . . Repair Stations . | . . . . . . . . . Recycling Units . | . . . . . . . . . Scanalyzers . | . . . . . . . . . Garrison Access . | . . . . . . . . . Data Cores Recovered 1 | . . . . . . 1 . . Used . | . . . . . . . . . Hacking Detections 45 | . 9 . . . 8 17 6 5 Full Trace Events 11 | . . . . . 2 6 . 3 Feedback Events . | . . . . . . . . . Feedback Blocked . | . . . . . . . . . Robot Schematics Acquired . | . . . . . . . . . Robots Built . | . . . . . . . . . Authchips . | . . . . . . . . . Time . | . . . . . . . . . Total Robot Build Rating . | . . . . . . . . . Part Schematics Acquired 14 | . 1 . . . 4 1 4 4 Parts Built 9 | . . . . . . 7 . 2 Authchips . | . . . . . . . . . Time 309 | . . . . . . 175 . 134 Total Part Build Rating 21 | . . . . . . 13 . 8 Parts Repaired 4 | . . . . . . 1 . 3 Time 255 | . . . . . . 38 . 217 Parts Recycled . | . . . . . . . . . Recycled Matter . | . . . . . . . . . Retrieved Matter 140 | . . . . . . 140 . . Retrieved Components 44 | . 23 . . . . 18 3 . Parts Scanalyzed 6 | . . . . . 2 . 4 . Part Schematics Acquired 6 | . . . . . 2 . 4 . Parts Damaged 1 | . . . . . . . 1 . Bothacking | -11 -10 -10 -10 -9 -8 -7 -6 -5 ------------ Run | Yrd Mat Min Exi Min Mat Fac Fac Fac Used RIF Installer . | . . . . . . . . . Robots Hacked . | . . . . . . . . . Non-combat . | . . . . . . . . . Combat . | . . . . . . . . . Robot Hacks Applied . | . . . . . . . . . Relay Couplers Released . | . . . . . . . . . Fabnet Peak Effective % . | . . . . . . . . . Robots Rewired . | . . . . . . . . . Allies Hacked . | . . . . . . . . . Hacks Repelled . | . . . . . . . . . Allies | -11 -10 -10 -10 -9 -8 -7 -6 -5 -------- Run | Yrd Mat Min Exi Min Mat Fac Fac Fac Total Allies . | . . . . . . . . . Largest Group . | . . . . . . . . . Highest-Rated Group . | . . . . . . . . . Highest-Rated Ally . | . . . . . . . . . Total Orders . | . . . . . . . . . Ally Attacks . | . . . . . . . . . Total Damage . | . . . . . . . . . Kills . | . . . . . . . . . Allies Corrupted . | . . . . . . . . . Allies Melted . | . . . . . . . . . Intel | -11 -10 -10 -10 -9 -8 -7 -6 -5 ------- Run | Yrd Mat Min Exi Min Mat Fac Fac Fac Robot Analysis Total 3 | . 3 . . . . . . . Derelict Logs Recovered 1 | . . 1 . . . . . . Drone Launches . | . . . . . . . . . Drone Recoveries . | . . . . . . . . . Exploration | -11 -10 -10 -10 -9 -8 -7 -6 -5 ------------- Run | Yrd Mat Min Exi Min Mat Fac Fac Fac Turns Passed 11638 | 151 1781 627 265 177 2518 3798 1345 976 Spaces Moved 10409 | 99 1414 472 233 141 1494 3867 1807 882 Core 3 | 3 . . . . . . . . Treads 201 | 6 5 4 . . 112 74 . . Legs 33 | . . . . . 33 . . . Wheels 4693 | 90 1409 468 233 141 1296 1056 . . Hover . | . . . . . . . . . Flight 5479 | . . . . . 53 2737 1807 882 Fastest Speed 26 | 50 95 110 110 110 95 26 28 30 Average Speed 72 | 95 103 113 110 110 118 61 33 34 Slowest Speed 320 | 160 160 240 125 110 240 320 117 230 Overloaded Moves . | . . . . . . . . . Propulsion Burnouts . | . . . . . . . . . Robots Hopped 27 | . . . . . . 17 6 4 Cave-ins Triggered . | . . . . . . . . . Exploration Rate (%) 53 | 5 99 91 61 31 92 63 18 17 Regions Visited 8 Branch Regions 3 Pre-discovered Areas 1 | . . . 1 . . . . . Known Exits Taken . | . . . . . . . . . Unknown Exits Taken 8 | 1 1 1 1 1 1 1 1 . Scrap Searched 2 | . . 1 . 1 . . . . Spaces Dug 34 | . . . . . 15 9 2 8 Terrain Destroyed 301 | . 11 30 . . 71 133 2 54 Melee 19 | . . . . . . 9 2 8 Projectile 11 | . . . . . 9 2 . . AOE 271 | . 11 30 . . 62 122 . 46 Terrain Rammed . | . . . . . . . . . Walls Destroyed . | . . . . . . . . . Machines Disabled . | . . . . . . . . . Actions | -11 -10 -10 -10 -9 -8 -7 -6 -5 --------- Run | Yrd Mat Min Exi Min Mat Fac Fac Fac Total 13889 | 136 1626 535 240 158 2046 5111 2513 1524 Wait 2743 | . 109 28 3 12 322 1042 657 570 Move 10347 | 98 1413 471 232 140 1493 3832 1794 874 Hop 27 | . . . . . . 17 6 4 Pick Up 88 | 14 18 4 1 1 20 12 6 12 Fast Attach 51 | 6 2 . 1 . 13 23 2 4 Attach 49 | 1 . . . . 9 19 6 14 Detach 26 | . . . . . 2 14 4 6 Swap 83 | . 10 5 1 . 30 19 11 7 Drop 120 | 5 17 5 2 2 38 32 7 12 Fire 282 | 12 57 22 . 3 94 84 8 2 Melee 48 | . . . . . . 17 12 19 Ram . | . . . . . . . . . Kick . | . . . . . . . . . Crush 25 | . . . . . 25 . . . Escape Stasis . | . . . . . . . . . Rewire . | . . . . . . . . . Trap . | . . . . . . . . . Miscellaneous . | . . . . . . . . . Route ------- -11/Scrapyard -10/Materials (discovered 5 exits: [*Mat x3] / [*Min] / *Sub) -10/Mines (discovered 4 exits: [*Mat x2] / *Exi / *Sub) -10/Exiles -9/Mines -8/Materials (discovered 2 exits: *Fac x2) -7/Factory (discovered 2 exits: *Fac x2) -6/Factory -5/Factory (discovered 1 exit: [*Upp]) History --------- Turn | Location | Event 23 | -11/Scrapyard | Discovered new exit (range 16) 152 | -11/Scrapyard | Entered Materials 310 | -10/Materials | Build established: Mutant 385 | -10/Materials | Central database locked down 389 | -10/Materials | Discovered new exit (range 15) 529 | -10/Materials | Discovered new exit (range 12) 1051 | -10/Materials | Discovered new exit (range 16) 1057 | -10/Materials | Discovered new exit (range 16) 1791 | -10/Materials | Discovered new exit (range 10) 1933 | -10/Materials | Entered Mines 2025 | -10/Mines | Discovered new exit (range 12) 2047 | -10/Mines | Identified exit to Subcaves 2218 | -10/Mines | YI-UF0 nonchalantly dropped a Grenade Launcher on the ground 2388 | -10/Mines | Discovered new exit (range 8) 2556 | -10/Mines | Deemed a non-threat by the Exiles lab entrance 2556 | -10/Mines | Discovered new exit (range 5) 2560 | -10/Mines | Entered Exiles 2590 | -10/Exiles | Met 8R-AWN 2609 | -10/Exiles | Met EX-HEX 2645 | -10/Exiles | Met EX-BIN 2658 | -10/Exiles | Aligned with FarCom system 2659 | -10/Exiles | Given EX-Vault access code 2684 | -10/Exiles | Opened EX-Vault 2694 | -10/Exiles | Found Gui. Plasma Cannon 2729 | -10/Exiles | Warned to stay clear of 0b10 Research branches 2763 | -10/Exiles | Met EX-DEC 2768 | -10/Exiles | Learned location of Zion (-6) 2809 | -10/Exiles | Discovered new exit (range 14) 2825 | -10/Exiles | Left Exiles lab with Gui. Plasma Cannon 2825 | -10/Exiles | Entered Mines 2971 | -9/Mines | Discovered new exit (range 9) 2984 | -9/Mines | Received a Rocket Launcher from a helpful Derelict 3002 | -9/Mines | Entered Materials 3002 | -8/Materials | Evolved 4 slots: Propulsion x2, Utility x2 3131 | -8/Materials | Build established: Skirmisher 3611 | -8/Materials | Build established: Scavenger-Skirmisher 4253 | -8/Materials | Discovered new exit (range 16) 4283 | -8/Materials | Build established: Scavenger-Mutant 4843 | -8/Materials | Central database locked down 5482 | -8/Materials | Discovered new exit (range 16) 5520 | -8/Materials | Entered Factory 5520 | -7/Factory | Evolved 2 slots: Utility x2 5852 | -7/Factory | Repaired Hvy. Particle Cannon 6749 | -7/Factory | Build established: Mutant 6907 | -7/Factory | Fabricated VTOL Module (x2) 7718 | -7/Factory | Fabricated VTOL Module? 8800 | -7/Factory | Discovered new exit (range 11) 9073 | -7/Factory | Build established: Hacker-Sprinter 9087 | -7/Factory | Fabricated Sml. Storage Unit (x1) 9228 | -7/Factory | Fabricated VTOL Module (x2) 9294 | -7/Factory | Discovered new exit (range 15) 9318 | -7/Factory | Entered another Factory area 9318 | -6/Factory | Evolved 2 slots: Utility x2 9657 | -6/Factory | Build established: Hacker-Mutant 10208 | -6/Factory | Discovered new exit (range 8) 10365 | -6/Factory | Spotted B-75 Beast 10576 | -6/Factory | Build established: Hacker-Sprinter 10663 | -6/Factory | Entered another Factory area 10663 | -5/Factory | Evolved 2 slots: Utility x2 10853 | -5/Factory | Repaired Broken Hvy. Missile Launcher 10910 | -5/Factory | Repaired Nuclear Pulse Array 10983 | -5/Factory | Repaired Xenon Bombardment Thruster 11023 | -5/Factory | Build established: Hacker-Mutant 11100 | -5/Factory | Fabricated Cld. VTOL Module? 11115 | -5/Factory | Discovered new exit (range 8) 11324 | -5/Factory | Build established: Wizard-Mutant 11491 | -5/Factory | Fabricated Cld. VTOL Module (x1) 11579 | -5/Factory | Lost 3 parts (1n2u) 11639 | -5/Factory | Self-destructed Last Messages --------------- 11615_ K-01 Serf cleans the Nuclear Reactor. 11618_ The unstable cave ceiling collapses. 11619_ K-01 Serf collects debris. 11623_ P-70 Sage Hpw. Shock Rifle severed. 11627_ K-01 Serf collects debris. 11628_ Field Propulsion Drive destroyed. 11630_ K-01 Serf collects debris. 11631_ U-05 Engineer builds a Wall. 11632_ Mic. Fission Core destroyed. 11633_ K-01 Serf collects debris. 11633_ U-05 Engineer builds a Wall. 11634_ P-70 Sage destroyed. 11635_ Acquired 55 matter. 11636_ U-05 Engineer lays Concrete. 11636_ K-01 Serf collects debris. 11637_ U-05 Engineer lays Concrete. 11638_ U-05 Engineer builds a Wall. 11638_ R-10 Processor collects Mic. Fission Core. [A new version of Cogmind is available, see F1 News page.] Map ----- +----------------------------------------------------+ | | | | | | | | | | | | | | | | | | | | | ?????????????????###############?????????????????? | | ??????????????## """"" """"" ##?????????????????? | | ??????????????## """"" """"" #############??????? | | ??????????????## """ """ #############??????? | | ??????????????##! ! # ##??????? | | ??????????????## ! # ##??????? | | ????????########! ! # !! ##??????# | | ????????#################+##### !!! ######### | | ????????## # ^ ######### | | ########## ! """ """ # # """" | | ########## """ """ + # ""F" | | # # """ """ # """^ # "" = | | # ? # # """ # | | # """""" #+############ """ + | | # """""" # ##T ######## !!| # """ | | # """""" + !@ u # """ !! | | # """""" #### ########R###=; # ###### # """ ! | | # #### ######## ### % #### # | | # #### ######## ### #### ####+##+# | | # #### ########+### #### #### # | | ############# #### #### #### | | #### ### #### ] #### #### #### | | ??## """"### #### ] #### #### #### | | ??## """"### #### " !##?? #### #### | | ??## """"### #### """ """ " ##?? #### #### | | ??## """"### #### """ """ " ##?? ##?? ## | | ??## ### #### """ """ #""";;;;###?? ???? / / | | ??#####+##### #### ### # #####?? ?????## | | ??### ########+################# ##???## | | ???## ############### ##???## | | ???## ## ##???## | | ???## ########## ##???##! | | ???## ###+############ ########## | | ##### # ##### ########### | | ##### # ##### !! ##### | | [ ### # ##?## ! ! | | [ ### ##### # """ ##?## !! | | [#### #####+# """ ##?## | | [ #! # "T" """ ##?## ##### | | + # # """ ##### ### | +----------------------------------------------------+ Best States ------------- Heat Dissipation 64 Energy Generation 18 Energy Capacity 290 Matter Stores 300 Matter Capacity 300 Sight Range 16 Terrain Scan Range 16 Terrain Scan Density 10 ECM Strength 4 Jamming Range 12 Base Temperature (-) 100 Armor Coverage 225 Resistance: KI 20 Resistance: TH 20 Resistance: EX 20 Resistance: EM 20 Resistance: I 20 Resistance: S 20 Resistance: P 20 Propulsion Shielding 66 Utility Shielding 33 Evasion (%) 64 Targeting Accuracy 8 Recoil Reduction 2 Offensive Hacking 40 Defensive Hacking 24 Item Schematics ----------------- Propulsion Shielding | -10/Materials | Hacked ECM Suite | -8/Materials | Hacked VTOL Module | -8/Materials | Hacked Hacking Suite | -8/Materials | Scanalyzed Imp. Shield Generator | -8/Materials | Scanalyzed Sml. Storage Unit | -7/Factory | Hacked Imp. Propulsion Shielding | -6/Factory | Scanalyzed Imp. Cooling System | -6/Factory | Scanalyzed Hvy. Missile Launcher | -6/Factory | Scanalyzed Mace | -6/Factory | Scanalyzed Imp. VTOL Module | -5/Factory | Hacked Cld. VTOL Module | -5/Factory | Hacked Imp. Hacking Suite | -5/Factory | Hacked Adv. Hacking Suite | -5/Factory | Hacked Robot Schematics ------------------ None Fabricated ------------ VTOL Module | x2 | -7/Factory VTOL Module | x2 | -7/Factory Sml. Storage Unit | x1 | -7/Factory VTOL Module | x2 | -7/Factory Cld. VTOL Module | x1 | -5/Factory Cld. VTOL Module | x1 | -5/Factory Alien Tech Used ----------------- None Achievements -------------- Fist Fight Party Time Challenges ------------ None Game ------ Seed MobileBehemothProjector Manual? 0 Play Time 02:18:24 Cumulative 26.6 hours Start 2024.05.28 @ 17:53:32 End 2024.05.29 @ 10:48:49 Sessions 9 Manual Loads 0 Difficulty Adventurer Special Mode None Game No. 12 Rogue 0 Adventurer 12 Explorer 0 Win Type - Total 0 Types 0/0/0/0/0/0/0/0/0 Lore% 20 Gallery% 31 Achievement% 28 Wizard Run 0 Options --------- Layout 2 ASCII 0 Keyboard 0 Movement Numpad Keybinds 0 Fullscreen 2 Font 16/Swanston Map View 55x47 Zoom Use 0% Tactical HUD 1 Map Filters NONE Filters NONE Steam 0 RUN: 5904d5f9-2bc3-413e-8ef4-68d414e390fd